fUST/lending_fUST_20240206
["ID","MTS","AMOUNT","RATE_DAILY","PERIOD"]
[313349264,1707204647371,-548.43529261,0.00027397,2]
[313349265,1707204647381,-500.0,0.00027397,2]
[313349266,1707204647391,-519.15984587,0.00027397,2]
[313349267,1707204647400,-511.88655836,0.00027397,2]
[313349268,1707204647410,-500.0,0.00027397,2]
[313349269,1707204647419,-519.57795889,0.00027397,2]
[313349270,1707204647429,-508.14036838,0.00027397,2]
[313349271,1707204647438,-500.0,0.00027397,2]
[313349272,1707204647448,-518.36827181,0.00027397,2]
[313349273,1707204647457,-500.0,0.00027397,2]
[313349274,1707204647467,-521.15253116,0.00027397,2]
[313349275,1707204647477,-500.0,0.00027397,2]
[313349276,1707204647487,-500.0,0.00027397,2]
[313349277,1707204647497,-500.0,0.00027397,2]
[313349278,1707204647507,-500.0,0.00027397,2]
[313349279,1707204647516,-500.0,0.00027397,2]
[313349280,1707204647525,-500.0,0.00027397,2]
[313349281,1707204647535,-527.05935845,0.00027397,2]
[313349282,1707204647544,-521.65451219,0.00027397,2]
[313349283,1707204647554,-500.0,0.00027397,2]
[313349284,1707204647564,-500.0,0.00027397,2]
[313349285,1707204647573,-512.5710719,0.00027397,2]
[313349286,1707204647582,-295.49597855,0.00027397,2]
[313349287,1707204647591,-514.02646051,0.00027397,2]
[313349288,1707204647600,-500.0,0.00027397,2]
[313349289,1707204647609,-620.47402572,0.00027397,2]
[313349290,1707204647619,-176.81987735,0.00027397,2]
[313349291,1707204647628,-500.0,0.00027397,2]
[313349292,1707204647638,-500.0,0.00027397,2]
[313349293,1707204647647,-500.0,0.00027397,2]
[313349294,1707204647659,-500.0,0.00027397,2]
[313349295,1707204647668,-557.01570454,0.00027397,2]
[313349296,1707204647676,-500.0,0.00027397,2]
[313349297,1707204647686,-500.0,0.00027397,2]
[313349298,1707204647695,-527.57705039,0.00027397,2]
[313349299,1707204647705,-625.14137948,0.00027397,2]
[313349300,1707204647714,-5773.11,0.00027397,2]
[313349301,1707204647724,-500.0,0.00027397,2]
[313349302,1707204647733,-500.0,0.00027397,2]
[313349303,1707204647743,-500.0,0.00027397,2]
[313349304,1707204647752,-500.0,0.00027397,2]
[313349305,1707204647762,-515.7061344,0.00027397,2]
[313349306,1707204647772,-515.07573753,0.00027397,2]
[313349307,1707204647782,-509.22951799,0.00027397,2]
[313349308,1707204647791,-500.0,0.00027397,2]
[313349309,1707204647800,-509.2053044,0.00027397,2]
[313349310,1707204647810,-556.76129592,0.00027397,2]
[313349311,1707204647819,-2699.77,0.00027397,2]
[313349312,1707204647828,-500.0,0.00027397,2]
[313349313,1707204647840,-500.0,0.00027397,2]
[313349314,1707204647850,-500.0,0.00027397,2]
[313349315,1707204647860,-500.0,0.00027397,2]
[313349316,1707204647869,-808.98,0.00027397,2]
[313349317,1707204647878,-201.06527275,0.00027397,2]
[313349318,1707204647887,-500.0,0.00027397,2]
[313349319,1707204647897,-522.64128082,0.00027397,2]
[313349320,1707204647906,-500.0,0.00027397,2]
[313349321,1707204647915,-500.0,0.00027397,2]
[313349322,1707204647925,-556.47346673,0.00027397,2]
[313349323,1707204647934,-500.0,0.00027397,2]
[313349324,1707204647943,-500.0,0.00027397,2]
[313349325,1707204647952,-500.0,0.00027397,2]
[313349326,1707204647962,-500.0,0.00027397,2]
[313349327,1707204647970,-538.87580733,0.00027397,2]
[313349328,1707204647979,-372.43009058,0.00027397,2]
[313349329,1707204647988,-500.0,0.00027397,2]
[313349330,1707204647997,-500.0,0.00027397,2]
[313349331,1707204648007,-500.0,0.00027397,2]
[313349332,1707204648016,-544.59346126,0.00027397,2]
[313349333,1707204648026,-1961.42,0.00027397,2]
[313349334,1707204648035,-500.0,0.00027397,2]
[313349335,1707204648044,-551.21022533,0.00027397,2]
[313349336,1707204648053,-1528.59,0.00027397,2]
[313349337,1707204648062,-500.0,0.00027397,2]
[313349338,1707204648071,-518.12853866,0.00027397,2]
[313349339,1707204648080,-500.0,0.00027397,2]
[313349340,1707204648089,-509.58722231,0.00027397,2]
[313349341,1707204648098,-500.0,0.00027397,2]
[313349342,1707204648107,-615.78398228,0.00027397,2]
[313349343,1707204648116,-500.0,0.00027397,2]
[313349344,1707204648125,-241.54538047,0.00027397,2]
[313349345,1707204648134,-1000.0,0.00027397,2]
[313349346,1707204648144,-500.0,0.00027397,2]
[313349347,1707204648153,-500.0,0.00027397,2]
[313349348,1707204648161,-500.0,0.00027397,2]
[313349349,1707204648171,-608.53934743,0.00027397,2]
[313349350,1707204648179,-500.0,0.00027397,2]
[313349351,1707204648188,-313.17066389,0.00027397,2]
[313349352,1707204648198,-500.0,0.00027397,2]
[313349353,1707204648207,-500.0,0.00027397,2]
[313349354,1707204648217,-6452.79,0.00027397,2]
[313349355,1707204648225,-439.21814386,0.00027397,2]
[313349356,1707204648235,-4034.52,0.00027397,2]
[313349357,1707204648244,-1796.58,0.00027397,2]
[313349358,1707204648253,-500.0,0.00027397,2]
[313349359,1707204648262,-4321.37,0.00027397,2]
[313349360,1707204648272,-500.0,0.00027397,2]
[313349361,1707204648281,-521.22627897,0.00027397,2]
[313349362,1707204648290,-3016.39,0.00027397,2]
[313349363,1707204648300,-500.0,0.00027397,2]
[313349364,1707204648309,-500.0,0.00027397,2]
[313349365,1707204648318,-500.0,0.00027397,2]
[313349366,1707204648327,-500.0,0.00027397,2]
[313349367,1707204648336,-543.72,0.00027397,2]
[313349368,1707204648345,-500.0,0.00027397,2]
[313349369,1707204648354,-500.0,0.00027397,2]
[313349370,1707204648363,-509.68887569,0.00027397,2]
[313349371,1707204648372,-511.41793333,0.00027397,2]
[313349372,1707204648382,-500.0,0.00027397,2]
[313349373,1707204648391,-500.0,0.00027397,2]
[313349374,1707204648400,-500.0,0.00027397,2]
[313349375,1707204648409,-500.0,0.00027397,2]
[313349376,1707204648418,-507.05821882,0.00027397,2]
[313349377,1707204648427,-519.40456928,0.00027397,2]
[313349378,1707204648436,-454.0,0.000274,2]
[313349379,1707204648445,-1000.0,0.00027421,2]
[313349380,1707204648454,-261.97912,0.00027476,2]
[313349381,1707204648463,-203.143798,0.00027476,2]
[313349382,1707204648472,-501.69028385,0.000275,2]
[313349383,1707204648482,-341.55703652,0.0002752,2]
[313349384,1707204648491,-168.66008152,0.00027568,2]
[313349385,1707204648500,-500.0,0.0002757,2]
[313349386,1707204648510,-500.0,0.0002757,2]
[313349387,1707204648519,-337.67953758,0.0002757,2]
[313349388,1707204648529,-500.0,0.0002757,2]
[313349389,1707204648539,-283.17948301,0.0002757,2]
[313349390,1707204648548,-242.58119397,0.0002757,2]
[313349391,1707204648557,-500.0,0.0002757,2]
[313349392,1707204648566,-240.11937101,0.0002757,2]
[313349393,1707204648575,-644.54139481,0.0002757,2]
[313349394,1707204648584,-500.0,0.0002757,2]
[313349395,1707204648593,-301.72378384,0.0002757,2]
[313349396,1707204648602,-591.68648727,0.0002757,2]
[313349397,1707204648611,-500.0,0.0002757,2]
[313349398,1707204648621,-500.0,0.0002757,2]
[313349399,1707204648629,-500.0,0.0002757,2]
[313349400,1707204648639,-500.0,0.0002757,2]
[313349401,1707204648648,-500.0,0.0002757,2]
[313349402,1707204648658,-500.0,0.0002757,2]
[313349403,1707204648667,-500.0,0.0002757,2]
[313349404,1707204648677,-500.0,0.0002757,2]
[313349405,1707204648686,-500.0,0.0002757,2]
[313349406,1707204648695,-500.0,0.0002757,2]
[313349407,1707204648704,-500.0,0.0002757,2]
[313349408,1707204648713,-500.0,0.0002757,2]
[313349409,1707204648722,-156.81818257,0.00027571,3]
[313349410,1707204648732,-147633.11786339,0.00027571,2]
[313349520,1707205834579,-525.57379999,0.00021655,2]
[313349547,1707205838691,-295.02714682,0.00021655,2]
[313349549,1707205838700,-184.003295,0.00021656,2]
[313349551,1707205838709,-475.99981911,0.00022468,2]
[313349553,1707205838718,-155.09209183,0.00022566,2]
[313349554,1707205838727,-1082.7676346,0.00022566,2]
[313349556,1707205838737,-1082.7676346,0.00022566,2]
[313349557,1707205838746,-1082.7676346,0.00022566,2]
[313349559,1707205838755,-1082.7676346,0.00022566,2]
[313349561,1707205838764,-1082.7676346,0.00022566,2]
[313349562,1707205838774,-1082.7676346,0.00022566,2]
[313349563,1707205838783,-1082.7676346,0.00022566,2]
[313349564,1707205838792,-1082.7676346,0.00022566,2]
[313349565,1707205838802,-1082.7676346,0.00022566,2]
[313349566,1707205838811,-1082.7676346,0.00022566,2]
[313349567,1707205838821,-1082.7676346,0.00022566,2]
[313349568,1707205838831,-1082.7676346,0.00022566,2]
[313349569,1707205838841,-1082.7676346,0.00022566,2]
[313349570,1707205838850,-1082.7676346,0.00022566,2]
[313349571,1707205838859,-1082.7676346,0.00022566,2]
[313349572,1707205838869,-1082.7676346,0.00022566,2]
[313349573,1707205838879,-1082.7676346,0.00022566,2]
[313349574,1707205838888,-1082.7676346,0.00022566,2]
[313349575,1707205838897,-1082.7676346,0.00022566,2]
[313349576,1707205838907,-1082.7676346,0.00022566,2]
[313349577,1707205838916,-1082.7676346,0.00022566,2]
[313349578,1707205838926,-1082.7676346,0.00022566,2]
[313349579,1707205838935,-1082.7676346,0.00022566,2]
[313349580,1707205838943,-1082.7676346,0.00022566,2]
[313349581,1707205838952,-1082.7676346,0.00022566,2]
[313349582,1707205838961,-1082.7676346,0.00022566,2]
[313349583,1707205838970,-1082.7676346,0.00022566,2]
[313349584,1707205838979,-1082.7676346,0.00022566,2]
[313349585,1707205838988,-1082.7676346,0.00022566,2]
[313349586,1707205838997,-1082.7676346,0.00022566,2]
[313349587,1707205839006,-1082.7676346,0.00022566,2]
[313349588,1707205839014,-1082.7676346,0.00022566,2]
[313349589,1707205839023,-1082.7676346,0.00022566,2]
[313349590,1707205839032,-1082.7676346,0.00022566,2]
[313349591,1707205839041,-1082.7676346,0.00022566,2]
[313349592,1707205839050,-1082.7676346,0.00022566,2]
[313349593,1707205839059,-1082.7676346,0.00022566,2]
[313349594,1707205839068,-1082.7676346,0.00022566,2]
[313349595,1707205839077,-1082.7676346,0.00022566,2]
[313349596,1707205839086,-1082.7676346,0.00022566,2]
[313349597,1707205839095,-1082.7676346,0.00022566,2]
[313349598,1707205839104,-1082.7676346,0.00022566,2]
[313349599,1707205839113,-1082.7676346,0.00022566,2]
[313349600,1707205839122,-1082.7676346,0.00022566,2]
[313349601,1707205839131,-1082.7676346,0.00022566,2]
[313349602,1707205839141,-1082.7676346,0.00022566,2]
[313349603,1707205839150,-1082.7676346,0.00022566,2]
[313349604,1707205839159,-1082.7676346,0.00022566,2]
[313349605,1707205839168,-1082.7676346,0.00022566,2]
[313349606,1707205839178,-1082.7676346,0.00022566,2]
[313349607,1707205839190,-1082.7676346,0.00022566,2]
[313349608,1707205839200,-1082.7676346,0.00022566,2]
[313349609,1707205839209,-1082.7676346,0.00022566,2]
[313349610,1707205839218,-1082.7676346,0.00022566,2]
[313349611,1707205839228,-1082.7676346,0.00022566,2]
[313349612,1707205839237,-1082.7676346,0.00022566,2]
[313349613,1707205839247,-1082.7676346,0.00022566,2]
[313349614,1707205839256,-1082.7676346,0.00022566,2]
[313349615,1707205839266,-1082.7676346,0.00022566,2]
[313349616,1707205839275,-1082.7676346,0.00022566,2]
[313349617,1707205839284,-1082.7676346,0.00022566,2]
[313349618,1707205839293,-1082.7676346,0.00022566,2]
[313349619,1707205839302,-1082.7676346,0.00022566,2]
[313349620,1707205839311,-1082.7676346,0.00022566,2]
[313349621,1707205839320,-1082.7676346,0.00022566,2]
[313349622,1707205839330,-1082.7676346,0.00022566,2]
[313349623,1707205839339,-1082.7676346,0.00022566,2]
[313349624,1707205839347,-3466.15509363,0.00022567,2]
[313349654,1707205841961,-241.36,0.00022556,3]
[313349655,1707205841971,-13786.517657,0.00022565,2]
[313349656,1707205841982,-3421.81370562,0.00022565,2]
[313349657,1707205841993,-5978.91557047,0.00022565,2]
[313349658,1707205842005,-8239.53357952,0.00022565,2]
[313349659,1707205842016,-8890.70797669,0.00022565,2]
[313349662,1707205842028,-4281.1,0.00022565,2]
[313349712,1707205844409,-39309.45765171,0.00022565,2]
[313349713,1707205844420,-39314.2409186,0.00022568,2]
[313349714,1707205844431,-24900.0,0.00022921,2]
[313349715,1707205844441,-2237.61080185,0.00023853,2]
[313349716,1707205844451,-299.99819492,0.00023859,2]
[313349717,1707205844462,-1786.4904777,0.00023859,2]
[313349718,1707205844471,-151.0,0.00024319,2]
[313349719,1707205844481,-200.0,0.00024823,7]
[313349720,1707205844490,-7404.37733039,0.00025,2]
[313349721,1707205844498,-4737.09564271,0.00025,2]
[313349722,1707205844508,-169.05872464,0.00025162,2]
[313349723,1707205844518,-475.9998191,0.0002535,2]
[313349724,1707205844528,-209.91570566,0.00025471,2]
[313349725,1707205844537,-151.0,0.00026072,2]
[313349726,1707205844547,-8673.81002401,0.00026192,4]
[313349727,1707205844558,-620.00004568,0.00026658,2]
[313349728,1707205844567,-307.40133285,0.00026942,2]
[313349729,1707205844576,-1000.0,0.00027,27]
[313349730,1707205844586,-18238.97845542,0.00027042,2]
[313349754,1707205846752,-2330.54747871,0.00027042,2]
[313349909,1707207041078,-745.87026728,0.0002387,2]
[313349910,1707207041089,-3335.58231273,0.00023882,2]
[313349955,1707207042849,-1196.04090975,0.00023882,2]
[313349961,1707207042903,-877.56756296,0.00023882,2]
[313349965,1707207042915,-15066.89322,0.00023882,2]
[313350188,1707208231904,-155.02170304,0.00020571,2]
[313350190,1707208231913,-155.02170304,0.00020581,2]
[313350191,1707208231922,-175.77961878,0.00020582,2]
[313350192,1707208231936,-22.81832442,0.00020582,2]
[313350193,1707208231945,-1916.22942253,0.00020774,2]
[313350213,1707208238094,-2007.78882142,0.00020774,2]
[313350252,1707208241277,-3358.92337475,0.00020774,2]
[313350253,1707208241286,-201.14,0.0002099,3]
[313350254,1707208241295,-155.02170304,0.00020999,2]
[313350256,1707208241304,-7930.45599083,0.00021,2]
[313350420,1707208666330,-1018.05941437,0.00018899,2]
[313350421,1707208666362,-332.52160935,0.000189,2]
[313350422,1707208666394,-1291.06,0.0002099,3]
[313350423,1707208666424,-155.0294556,0.00020999,2]
[313350424,1707208666444,-1018.05941437,0.00021,2]
[313350425,1707208666456,-332.52160935,0.00021,2]
[313350426,1707208666467,-1291.06,0.00021,2]
[313350427,1707208666485,-155.0294556,0.00021,2]
[313350428,1707208666497,-4671.65904136,0.00021,2]
[313350437,1707208739958,-3290.0,0.00021,2]
[313350478,1707209432142,-221.6810729,0.000189,2]
[313350479,1707209432152,-167.06975342,0.0002099,3]
[313350632,1707209443242,-1048.04,0.0002099,3]
[313350633,1707209443252,-1301.06461214,0.00020999,2]
[313350634,1707209443262,-1993.46407044,0.00020999,2]
[313350635,1707209443272,-4643.91032105,0.00021,2]
[313350636,1707209443283,-7551.80044201,0.00021,2]
[313350637,1707209443298,-62224.09276675,0.00021,2]
[313350638,1707209443307,-376.95751562,0.00021667,2]
[313350639,1707209443316,-156.38818445,0.00021767,2]
[313350640,1707209443326,-1021.45804526,0.00021772,2]
[313350641,1707209443335,-570.23890532,0.00021773,2]
[313350643,1707209443344,-570.23890532,0.00021773,2]
[313350645,1707209443353,-570.23890532,0.00021773,2]
[313350646,1707209443363,-570.23890532,0.00021773,2]
[313350647,1707209443371,-570.23890532,0.00021773,2]
[313350648,1707209443381,-570.23890532,0.00021773,2]
[313350649,1707209443389,-570.23890532,0.00021773,2]
[313350650,1707209443398,-570.23890532,0.00021773,2]
[313350651,1707209443407,-570.23890532,0.00021773,2]
[313350652,1707209443416,-570.23890532,0.00021773,2]
[313350653,1707209443425,-570.23890532,0.00021773,2]
[313350654,1707209443434,-570.23890532,0.00021773,2]
[313350655,1707209443443,-570.23890532,0.00021773,2]
[313350656,1707209443452,-570.23890532,0.00021773,2]
[313350657,1707209443462,-570.23890532,0.00021773,2]
[313350658,1707209443471,-570.23890532,0.00021773,2]
[313350659,1707209443480,-570.23890532,0.00021773,2]
[313350660,1707209443489,-570.23890532,0.00021773,2]
[313350661,1707209443498,-570.23890532,0.00021773,2]
[313350662,1707209443508,-570.23890532,0.00021773,2]
[313350663,1707209443517,-570.23890532,0.00021773,2]
[313350664,1707209443526,-570.23890532,0.00021773,2]
[313350665,1707209443535,-570.23890532,0.00021773,2]
[313350666,1707209443544,-570.23890532,0.00021773,2]
[313350667,1707209443553,-570.23890532,0.00021773,2]
[313350668,1707209443562,-570.23890532,0.00021773,2]
[313350669,1707209443572,-570.23890532,0.00021773,2]
[313350670,1707209443581,-570.23890532,0.00021773,2]
[313350671,1707209443590,-570.23890532,0.00021773,2]
[313350672,1707209443599,-570.23890532,0.00021773,2]
[313350673,1707209443608,-570.23890532,0.00021773,2]
[313350674,1707209443617,-570.23890532,0.00021773,2]
[313350675,1707209443626,-570.23890532,0.00021773,2]
[313350676,1707209443635,-570.23890532,0.00021773,2]
[313350677,1707209443644,-570.23890532,0.00021773,2]
[313350678,1707209443653,-570.23890532,0.00021773,2]
[313350679,1707209443662,-570.23890532,0.00021773,2]
[313350680,1707209443671,-570.23890532,0.00021773,2]
[313350681,1707209443680,-570.23890532,0.00021773,2]
[313350682,1707209443690,-570.23890532,0.00021773,2]
[313350683,1707209443699,-570.23890532,0.00021773,2]
[313350684,1707209443708,-570.23890532,0.00021773,2]
[313350685,1707209443717,-570.23890532,0.00021773,2]
[313350686,1707209443726,-570.23890532,0.00021773,2]
[313350687,1707209443734,-570.23890532,0.00021773,2]
[313350688,1707209443743,-570.23890532,0.00021773,2]
[313350689,1707209443753,-570.23890532,0.00021773,2]
[313350690,1707209443762,-570.23890532,0.00021773,2]
[313350691,1707209443771,-570.23890532,0.00021773,2]
[313350692,1707209443780,-570.23890532,0.00021773,2]
[313350693,1707209443789,-570.23890532,0.00021773,2]
[313350694,1707209443797,-570.23890532,0.00021773,2]
[313350695,1707209443806,-570.23890532,0.00021773,2]
[313350696,1707209443815,-570.23890532,0.00021773,2]
[313350697,1707209443824,-570.23890532,0.00021773,2]
[313350698,1707209443833,-570.23890532,0.00021773,2]
[313350699,1707209443841,-570.23890532,0.00021773,2]
[313350700,1707209443850,-570.23890532,0.00021773,2]
[313350701,1707209443859,-570.23890532,0.00021773,2]
[313350702,1707209443868,-570.23890532,0.00021773,2]
[313350703,1707209443877,-570.23890532,0.00021773,2]
[313350704,1707209443886,-570.23890532,0.00021773,2]
[313350705,1707209443895,-570.23890532,0.00021773,2]
[313350706,1707209443904,-570.23890532,0.00021773,2]
[313350707,1707209443913,-570.23890532,0.00021773,2]
[313350708,1707209443922,-570.23890532,0.00021773,2]
[313350709,1707209443931,-570.23890532,0.00021773,2]
[313350710,1707209443941,-570.23890532,0.00021773,2]
[313350711,1707209443950,-570.23890532,0.00021773,2]
[313350712,1707209443959,-570.23890532,0.00021773,2]
[313350713,1707209443968,-570.23890532,0.00021773,2]
[313350714,1707209443977,-570.23890532,0.00021773,2]
[313350715,1707209443986,-570.23890532,0.00021773,2]
[313350716,1707209443996,-570.23890532,0.00021773,2]
[313350717,1707209444005,-570.23890532,0.00021773,2]
[313350718,1707209444014,-570.23890532,0.00021773,2]
[313350719,1707209444024,-570.23890532,0.00021773,2]
[313350720,1707209444033,-570.23890532,0.00021773,2]
[313350721,1707209444042,-570.23890532,0.00021773,2]
[313350722,1707209444051,-570.23890532,0.00021773,2]
[313350723,1707209444060,-570.23890532,0.00021773,2]
[313350724,1707209444070,-570.23890532,0.00021773,2]
[313350725,1707209444079,-570.23890532,0.00021773,2]
[313350726,1707209444088,-570.23890532,0.00021773,2]
[313350727,1707209444097,-570.23890532,0.00021773,2]
[313350728,1707209444106,-570.23890532,0.00021773,2]
[313350729,1707209444115,-570.23890532,0.00021773,2]
[313350730,1707209444126,-570.23890518,0.00021773,2]
[313350731,1707209444135,-50671.92940341,0.00021774,2]
[313350732,1707209444145,-263.75913,0.00021774,2]
[313350733,1707209444155,-151.0,0.00021774,2]
[313350734,1707209444164,-151.0,0.00021774,2]
[313350735,1707209444173,-166.6666668,0.00021918,2]
[313350736,1707209444182,-50000.0,0.00022961,2]
[313350737,1707209444191,-200.0,0.00023099,7]
[313350738,1707209444200,-2607.93912267,0.00023642,2]
[313350739,1707209444209,-200.0,0.00023643,2]
[313350740,1707209444219,-400.0,0.00023643,2]
[313350741,1707209444227,-200.0,0.00023643,2]
[313350742,1707209444236,-14384.21367909,0.00023882,2]
[313350743,1707209444245,-264.7757,0.00023882,2]
[313350744,1707209444255,-904.32070889,0.00023888,2]
[313350745,1707209444264,-577.0698333,0.00023888,2]
[313350746,1707209444273,-1646.30146843,0.00023888,2]
[313350747,1707209444286,-9520.53294496,0.00023894,2]
[313350748,1707209444295,-2856.15988349,0.00023894,2]
[313350749,1707209444305,-221.6810729,0.000239,2]
[313350750,1707209444314,-6288.9604092,0.000239,2]
[313350751,1707209444323,-416.38533922,0.00023906,2]
[313350752,1707209444333,-820.60094681,0.00024091,2]
[313350753,1707209444342,-158.8308104,0.00024384,2]
[313350754,1707209444352,-4737.09564271,0.00025,2]
[313350755,1707209444362,-7404.37733039,0.00025,2]
[313350756,1707209444373,-194.20620314,0.00025169,2]
[313350757,1707209444382,-305.46295466,0.00025169,2]
[313350758,1707209444392,-280.0,0.00025409,7]
[313350759,1707209444401,-155.03255684,0.00027,3]
[313350760,1707209444410,-2001.83906152,0.00027,2]
[313350761,1707209444419,-3000.0,0.00027,2]
[313350762,1707209444428,-155.0294556,0.00027038,2]
[313350763,1707209444437,-202.19269165,0.00027038,2]
[313350764,1707209444447,-264.14942563,0.00027038,2]
[313350765,1707209444456,-1864.34480987,0.00027038,2]
[313350766,1707209444465,-490.16461162,0.00027038,2]
[313350767,1707209444475,-689.47929116,0.00027038,2]
[313350768,1707209444484,-155.0294556,0.00027039,2]
[313350769,1707209444493,-5848.46839529,0.00027039,2]
[313350770,1707209444502,-155.38076215,0.0002704,2]
[313350771,1707209444513,-213.9454637,0.0002704,2]
[313350772,1707209444522,-609.08979656,0.0002704,2]
[313350773,1707209444531,-781.95241201,0.0002704,2]
[313350774,1707209444540,-27842.53719987,0.0002704,2]
[313350775,1707209444549,-2820.01011613,0.0002704,2]
[313350776,1707209444559,-358.84873955,0.0002704,2]
[313350777,1707209444568,-155.03255684,0.00027042,2]
[313350778,1707209444577,-538.26255608,0.00027042,2]
[313350779,1707209444586,-765.83829115,0.00027042,2]
[313350780,1707209444596,-182.90301,0.00027211,2]
[313350781,1707209444606,-171.140725,0.00027211,2]
[313350782,1707209444615,-200.0,0.00027295,2]
[313350783,1707209444624,-200.0,0.00027295,2]
[313350784,1707209444633,-200.0,0.00027295,2]
[313350785,1707209444642,-200.0,0.00027295,2]
[313350786,1707209444652,-200.0,0.00027295,2]
[313350787,1707209444661,-200.0,0.00027295,2]
[313350788,1707209444671,-200.0,0.00027295,2]
[313350789,1707209444768,-200.0,0.00027295,2]
[313350790,1707209444779,-200.0,0.00027295,2]
[313350791,1707209444789,-200.0,0.00027295,2]
[313350792,1707209444798,-200.0,0.00027295,2]
[313350793,1707209444808,-276.66119952,0.00027297,2]
[313350794,1707209444817,-254.7364143,0.00027394,2]
[313350795,1707209444826,-199.79817846,0.00027394,2]
[313350796,1707209444836,-214.39009445,0.00027396,2]
[313350797,1707209444845,-1443.50958165,0.00027396,2]
[313350798,1707209444854,-521.06,0.00027397,2]
[313350799,1707209444864,-500.0,0.00027397,2]
[313350800,1707209444873,-1000.0,0.00027397,2]
[313350801,1707209444882,-562.327547,0.00027397,2]
[313350802,1707209444892,-500.0,0.00027397,2]
[313350803,1707209444901,-371.15154184,0.00027397,2]
[313350804,1707209444911,-500.0,0.00027397,2]
[313350805,1707209444921,-500.0,0.00027397,2]
[313350806,1707209444930,-525.9780159,0.00027397,2]
[313350807,1707209444940,-544.62522732,0.00027397,2]
[313350808,1707209444949,-500.0,0.00027397,2]
[313350809,1707209444958,-500.0,0.00027397,2]
[313350810,1707209444967,-504.05354757,0.00027397,2]
[313350811,1707209444976,-636.35089559,0.00027397,2]
[313350812,1707209444985,-552.93,0.00027397,2]
[313350813,1707209444994,-456.95887999,0.00027397,2]
[313350814,1707209445003,-916.62,0.00027397,2]
[313350815,1707209445013,-500.30876273,0.00027397,2]
[313350816,1707209445022,-500.0,0.00027397,2]
[313350817,1707209445030,-500.0,0.00027397,2]
[313350818,1707209445039,-529.63714671,0.00027397,2]
[313350819,1707209445047,-601.53365075,0.00027397,2]
[313350820,1707209445056,-516.75452131,0.00027397,2]
[313350821,1707209445065,-500.0,0.00027397,2]
[313350822,1707209445073,-500.0,0.00027397,2]
[313350823,1707209445082,-500.0,0.00027397,2]
[313350824,1707209445092,-500.0,0.00027397,2]
[313350825,1707209445100,-500.0,0.00027397,2]
[313350826,1707209445109,-500.0,0.00027397,2]
[313350827,1707209445118,-500.0,0.00027397,2]
[313350828,1707209445127,-500.0,0.00027397,2]
[313350829,1707209445135,-500.0,0.00027397,2]
[313350830,1707209445144,-498.84142591,0.00027397,2]
[313350831,1707209445153,-500.0,0.00027397,2]
[313350832,1707209445161,-445.86692096,0.00027397,2]
[313350833,1707209445170,-514.95913782,0.00027397,2]
[313350834,1707209445179,-500.0,0.00027397,2]
[313350835,1707209445187,-160.62778162,0.00027397,2]
[313350836,1707209445196,-504.86066558,0.00027397,2]
[313350837,1707209445205,-537.98781275,0.00027397,2]
[313350838,1707209445214,-522.08809685,0.00027397,2]
[313350839,1707209445223,-500.0,0.00027397,2]
[313350840,1707209445232,-6183.92,0.00027397,2]
[313350841,1707209445240,-155.0,0.00027397,2]
[313350842,1707209445249,-500.0,0.00027397,2]
[313350843,1707209445262,-500.0,0.00027397,2]
[313350844,1707209445279,-500.0,0.00027397,2]
[313350845,1707209445296,-509.61301204,0.00027397,2]
[313350846,1707209445305,-500.0,0.00027397,2]
[313350847,1707209445325,-500.0,0.00027397,2]
[313350848,1707209445351,-617.49644806,0.00027397,2]
[313350849,1707209445370,-500.0,0.00027397,2]
[313350850,1707209445386,-3866.41,0.00027397,2]
[313350851,1707209445395,-500.0,0.00027397,2]
[313350852,1707209445404,-500.0,0.00027397,2]
[313350853,1707209445413,-511.64748241,0.00027397,2]
[313350854,1707209445422,-4141.32,0.00027397,2]
[313350855,1707209445430,-500.0,0.00027397,2]
[313350856,1707209445440,-505.06862647,0.00027397,2]
[313350857,1707209445449,-500.0,0.00027397,2]
[313350858,1707209445459,-500.0,0.00027397,2]
[313350859,1707209445468,-500.0,0.00027397,2]